fUSD/lending_fUSD_20251204
["ID","MTS","AMOUNT","RATE_DAILY","PERIOD"]
[396226155,1764839446891,-334.5472959,0.00020253,2]
[396226156,1764839446902,-153.00164687,0.00020253,2]
[396226157,1764839446911,-309.29654756,0.00020253,2]
[396226158,1764839446921,-162.380719,0.00020274,2]
[396226159,1764839446930,-154.70658412,0.00020396,2]
[396226160,1764839446939,-1947.9010221,0.00020396,2]
[396226161,1764839446948,-1251.0,0.00020459,2]
[396226162,1764839446957,-1251.0,0.00020459,2]
[396226163,1764839446967,-1251.0,0.00020459,2]
[396226164,1764839446976,-202.21375982,0.00020459,2]
[396226165,1764839446985,-1000.0,0.0002046,2]
[396226166,1764839446995,-2350.0,0.0002053,2]
[396226167,1764839447004,-21405.35,0.00020548,2]
[396226168,1764839447013,-191.08,0.00020548,2]
[396226169,1764839447022,-250.318239,0.00020548,2]
[396226170,1764839447031,-250.318239,0.00020548,2]
[396226171,1764839447041,-250.318239,0.00020548,2]
[396226172,1764839447050,-250.318239,0.00020548,2]
[396226173,1764839447060,-191.908777,0.00020548,2]
[396226174,1764839447072,-191.908777,0.00020548,2]
[396226175,1764839447082,-191.908777,0.00020548,2]
[396226176,1764839447091,-191.908777,0.00020548,2]
[396226177,1764839447101,-1402.80529201,0.00020567,2]
[396226178,1764839447111,-562.05,0.00020584,2]
[396226179,1764839447121,-150.34,0.00020623,2]
[396226180,1764839447130,-22540.68009874,0.000207,2]
[396226181,1764839447143,-2000.0,0.000207,2]
[396226182,1764839447152,-157.75281607,0.00020712,2]
[396226183,1764839447160,-153.24536797,0.00020726,2]
[396226184,1764839447170,-1251.0,0.00020774,2]
[396226185,1764839447179,-1000.0,0.00020795,2]
[396226186,1764839447188,-168.3888056,0.00020822,2]
[396226187,1764839447197,-705.43,0.00020999,2]
[396226188,1764839447206,-20000.0,0.00021,2]
[396226189,1764839447216,-1186.48878654,0.00021,2]
[396226190,1764839447225,-195.84673444,0.00021,2]
[396226191,1764839447234,-500.0,0.00021,3]
[396226192,1764839447244,-500.0,0.00021,3]
[396226193,1764839447254,-150.0,0.00021,2]
[396226194,1764839447263,-150.0,0.00021,2]
[396226195,1764839447273,-350.0,0.00021,2]
[396226196,1764839447282,-12449.02,0.00021068,2]
[396226197,1764839447291,-270.68674372,0.00021114,2]
[396226198,1764839447300,-250.08,0.00021196,2]
[396226199,1764839447311,-2010.46929123,0.000212,2]
[396226200,1764839447320,-232.08,0.00021299,2]
[396226201,1764839447329,-6344.31,0.0002137,2]
[396226202,1764839447339,-174.61919141,0.0002137,2]
[396226203,1764839447348,-150.34,0.00021482,2]
[396226204,1764839447357,-220.88357112,0.000215,2]
[396226205,1764839447366,-346.92554585,0.00021622,2]
[396226206,1764839447375,-320.74051982,0.00021622,2]
[396226207,1764839447384,-736.57,0.00021801,2]
[396226208,1764839447393,-157.75281607,0.00021802,2]
[396226209,1764839447402,-4911.29924807,0.00021833,2]
[396226210,1764839447411,-2832.3444381,0.00021899,2]
[396226211,1764839447422,-5000.0,0.00021918,2]
[396226212,1764839447431,-164.869377,0.00021918,2]
[396226213,1764839447441,-164.40335477,0.00021918,2]
[396226214,1764839447451,-1000.0,0.0002197,2]
[396226215,1764839447460,-500.0,0.0002197,2]
[396226216,1764839447469,-666.0,0.00021999,2]
[396226217,1764839447479,-10000.0,0.00022,2]
[396226218,1764839447488,-581.13893451,0.00022,4]
[396226219,1764839447498,-4123.17549454,0.00022,2]
[396226220,1764839447508,-160.97,0.00022,2]
[396226221,1764839447517,-254.72910132,0.00022,2]
[396226222,1764839447526,-12245.92119942,0.00022,7]
[396226223,1764839447569,-549.76957592,0.00022,7]
[396226224,1764839447580,-4312.36922466,0.00022,7]
[396226225,1764839447588,-4823.69043218,0.00022,2]
[396226226,1764839447618,-4505.45,0.00022,2]
[396226227,1764839447986,-562.0,0.00019771,2]
[396226228,1764839447996,-1483.39356299,0.00022,2]
[396226229,1764839448008,-834.90360017,0.00022,2]
[396226230,1764839448019,-1340.88173211,0.00022,2]
[396226231,1764839448035,-2447.7153657,0.00022,2]
[396226232,1764839448665,-151.0,0.00017401,2]
[396226233,1764839448675,-151.0,0.00017438,2]
[396226234,1764839448686,-294.705644,0.00019178,2]
[396226235,1764839448698,-294.705644,0.00019178,2]
[396226236,1764839448707,-294.705644,0.00019178,2]
[396226237,1764839448717,-66.40618554,0.00019178,2]
[396226238,1764839448757,-228.29945846,0.00019178,2]
[396226239,1764839448766,-294.705644,0.00020145,2]
[396226240,1764839448775,-30.29196217,0.00020145,2]
[396226241,1764839448787,-264.41368183,0.00020145,2]
[396226242,1764839448798,-894.88631817,0.00022,2]
[396226243,1764839717099,756.0,0.00021395,120]
[396226244,1764839718343,756.0,0.00022465,120]
[396226245,1764839719604,756.0,0.00023588,120]
[396226246,1764839720994,756.0,0.00024768,120]
[396226314,1764840009195,453.0,0.00021532,120]
[396226315,1764840010643,453.0,0.00022609,120]
[396226316,1764840012171,453.0,0.00023739,120]
[396226317,1764840013561,453.0,0.00024926,120]
[396226418,1764840313760,524.0,0.00020603,120]
[396226419,1764840315087,524.0,0.00021633,120]
[396226420,1764840316365,524.0,0.00022715,120]
[396226421,1764840317648,524.0,0.00023851,120]
[396226425,1764840608704,262.0,0.00021725,120]
[396226426,1764840610230,262.0,0.00022811,120]
[396226427,1764840611735,262.0,0.00023952,120]
[396226437,1764840631718,-752.27,0.00013699,2]
[396226439,1764840631728,-500.0,0.00015652,2]
[396226441,1764840631737,-1200.0,0.00015712,2]
[396226442,1764840631747,-200.0,0.00015713,2]
[396226444,1764840631757,-2751.0,0.00015713,2]
[396226445,1764840631766,-299.0,0.00015722,2]
[396226446,1764840631776,-3557.40303368,0.00015725,2]
[396226447,1764840631929,-9459.66696632,0.00015725,2]
[396226448,1764840631939,-764.63,0.00015745,2]
[396226449,1764840631948,-200.06,0.00015789,2]
[396226450,1764840631958,-250.0,0.00015828,2]
[396226451,1764840631969,-200.0,0.00015843,2]
[396226452,1764840631980,-185.66,0.00015959,2]
[396226453,1764840631989,-449.64,0.00015959,2]
[396226454,1764840631999,-318.00639713,0.00016,2]
[396226526,1764840637979,-2532.34672032,0.00016,2]
[396226527,1764840637990,-88922.73953435,0.00016,4]
[396226528,1764840638003,-686.76356741,0.00016,4]
[396226529,1764840638084,-651.22511924,0.00016,4]
[396226530,1764840638096,-520.8490333,0.00016,4]
[396226535,1764840639837,-3194.191,0.00016,4]
[396226536,1764840640032,-249853.75134477,0.00016,4]
[396226537,1764840640042,-166.66,0.00016303,2]
[396226538,1764840640053,-2346.0,0.00016486,2]
[396226539,1764840640064,-2346.0,0.00016515,2]
[396226540,1764840640075,-300.0,0.00016543,2]
[396226541,1764840640084,-311.1,0.00016543,2]
[396226542,1764840640094,-1900.0,0.00016543,2]
[396226543,1764840640106,-1500.0,0.00016543,2]
[396226544,1764840640115,-277.35679052,0.00016543,2]
[396226545,1764840640126,-2346.0,0.00016563,2]
[396226546,1764840640137,-33854.853,0.00016567,2]
[396226547,1764840640147,-889.492,0.0001658,2]
[396226548,1764840640156,-2346.0,0.0001658,2]
[396226549,1764840640166,-151.0,0.00016657,2]
[396226550,1764840640175,-574.12855637,0.00016657,2]
[396226551,1764840640184,-1000.0,0.00016657,2]
[396226552,1764840640195,-1000.0,0.00016657,2]
[396226553,1764840640205,-1000.0,0.00016657,2]
[396226554,1764840640215,-1000.0,0.00016657,2]
[396226555,1764840640224,-1000.0,0.00016657,2]
[396226556,1764840640235,-500.0,0.00016657,2]
[396226557,1764840640244,-1000.0,0.00016657,2]
[396226558,1764840640253,-500.0,0.00016657,2]
[396226559,1764840640263,-1000.0,0.00016657,2]
[396226561,1764840640272,-500.0,0.00016657,2]
[396226563,1764840640281,-1000.0,0.00016657,2]
[396226565,1764840640291,-186.44190907,0.00016657,2]
[396226566,1764840640301,-500.0,0.00016657,2]
[396226567,1764840640311,-1000.0,0.00016657,2]
[396226568,1764840640320,-500.0,0.00016657,2]
[396226569,1764840640330,-1000.0,0.00016657,2]
[396226570,1764840640339,-500.0,0.00016657,2]
[396226571,1764840640349,-1000.0,0.00016657,2]
[396226572,1764840640358,-500.0,0.00016657,2]
[396226573,1764840640372,-500.0,0.00016657,2]
[396226574,1764840640382,-500.0,0.00016657,2]
[396226575,1764840640392,-500.0,0.00016657,2]
[396226576,1764840640402,-500.0,0.00016657,2]
[396226578,1764840640412,-151.0,0.00016657,2]
[396226579,1764840640425,-151.0,0.00016657,2]
[396226580,1764840640435,-65726.1727312,0.00016667,2]
[396226581,1764840640444,-500.0,0.00016678,2]
[396226582,1764840640454,-500.0,0.00016678,2]
[396226583,1764840640463,-380.92195242,0.00016678,2]
[396226584,1764840640473,-522.78498411,0.00016678,2]
[396226585,1764840640483,-522.78498411,0.00016678,2]
[396226586,1764840640492,-522.78498411,0.00016678,2]
[396226587,1764840640502,-522.78498411,0.00016678,2]
[396226588,1764840640513,-522.78498411,0.00016678,2]
[396226589,1764840640523,-522.78498411,0.00016678,2]
[396226590,1764840640533,-522.78498411,0.00016678,2]
[396226591,1764840640543,-522.78498411,0.00016678,2]
[396226592,1764840640552,-522.78498411,0.00016678,2]
[396226593,1764840640562,-522.78498411,0.00016678,2]
[396226594,1764840640572,-522.78498411,0.00016678,2]
[396226595,1764840640583,-522.78498411,0.00016678,2]
[396226596,1764840640593,-522.78498411,0.00016678,2]
[396226597,1764840640604,-522.78498411,0.00016678,2]
[396226598,1764840640616,-522.78498411,0.00016678,2]
[396226599,1764840640626,-522.78498411,0.00016678,2]
[396226600,1764840640635,-522.78498411,0.00016678,2]
[396226601,1764840640644,-522.78498411,0.00016678,2]
[396226602,1764840640654,-522.78498411,0.00016678,2]
[396226603,1764840640664,-522.78498411,0.00016678,2]
[396226604,1764840640675,-522.78498411,0.00016678,2]
[396226605,1764840640686,-522.78498411,0.00016678,2]
[396226606,1764840640696,-522.78498411,0.00016678,2]
[396226607,1764840640706,-522.78498411,0.00016678,2]
[396226608,1764840640716,-522.78498411,0.00016678,2]
[396226609,1764840640726,-522.78498411,0.00016678,2]
[396226610,1764840640736,-522.78498411,0.00016678,2]
[396226611,1764840640746,-522.78498411,0.00016678,2]
[396226612,1764840640759,-522.78498411,0.00016678,2]
[396226613,1764840640769,-522.78498411,0.00016678,2]
[396226614,1764840640779,-522.78498411,0.00016678,2]
[396226615,1764840640791,-522.78498411,0.00016678,2]
[396226616,1764840640800,-522.78498411,0.00016678,2]
[396226617,1764840640811,-522.78498411,0.00016678,2]
[396226618,1764840640822,-522.78498411,0.00016678,2]
[396226619,1764840640832,-522.78498411,0.00016678,2]
[396226620,1764840640842,-522.78498411,0.00016678,2]
[396226621,1764840640852,-522.78498411,0.00016678,2]
[396226622,1764840640863,-522.78498411,0.00016678,2]
[396226623,1764840640872,-522.78498411,0.00016678,2]
[396226624,1764840640885,-522.78498411,0.00016678,2]
[396226625,1764840640895,-522.78498411,0.00016678,2]
[396226626,1764840640905,-522.78498411,0.00016678,2]
[396226627,1764840640916,-522.78498411,0.00016678,2]
[396226628,1764840640926,-522.78498411,0.00016678,2]
[396226629,1764840640936,-522.78498411,0.00016678,2]
[396226630,1764840640946,-522.78498411,0.00016678,2]
[396226631,1764840640955,-522.78498411,0.00016678,2]
[396226632,1764840640965,-522.78498411,0.00016678,2]
[396226633,1764840640975,-522.78498411,0.00016678,2]
[396226634,1764840640986,-522.78498411,0.00016678,2]
[396226635,1764840640997,-522.78498411,0.00016678,2]
[396226636,1764840641007,-522.78498411,0.00016678,2]
[396226637,1764840641017,-522.78498411,0.00016678,2]
[396226638,1764840641027,-522.78498411,0.00016678,2]
[396226639,1764840641036,-522.78498411,0.00016678,2]
[396226640,1764840641047,-522.78498411,0.00016678,2]
[396226641,1764840641058,-522.78498411,0.00016678,2]
[396226642,1764840641068,-522.78498411,0.00016678,2]
[396226643,1764840641078,-522.78498411,0.00016678,2]
[396226644,1764840641088,-522.78498411,0.00016678,2]
[396226645,1764840641099,-522.78498411,0.00016678,2]
[396226646,1764840641111,-522.78498411,0.00016678,2]
[396226647,1764840641120,-522.78498411,0.00016678,2]
[396226648,1764840641131,-522.78498411,0.00016678,2]
[396226649,1764840641140,-522.78498411,0.00016678,2]
[396226650,1764840641149,-522.78498411,0.00016678,2]
[396226651,1764840641159,-522.78498411,0.00016678,2]
[396226652,1764840641169,-522.78498411,0.00016678,2]
[396226653,1764840641179,-522.78498411,0.00016678,2]
[396226654,1764840641188,-522.78498411,0.00016678,2]
[396226655,1764840641198,-2346.0,0.00016679,2]
[396226656,1764840641208,-2579.60999429,0.0001673,2]
[396226657,1764840641218,-2346.0,0.00016732,2]
[396226658,1764840641227,-2579.60999429,0.00016753,2]
[396226659,1764840641236,-2579.60999429,0.00016777,2]
[396226660,1764840641246,-986.73,0.00016788,2]
[396226661,1764840641256,-510.22691486,0.00016797,2]
[396226662,1764840641265,-2579.60999429,0.000168,2]
[396226663,1764840641275,-2579.60999429,0.00016824,2]
[396226664,1764840641284,-2346.0,0.0001683,2]
[396226665,1764840641294,-166.66,0.00016841,2]
[396226666,1764840641303,-2579.60999429,0.00016847,2]
[396226667,1764840641313,-2579.60999429,0.00016871,2]
[396226668,1764840641323,-2579.60999429,0.00016894,2]
[396226669,1764840641332,-202.59163877,0.00016899,2]
[396226670,1764840641342,-181.41208312,0.000169,2]
[396226671,1764840641351,-2619.84735268,0.000169,2]
[396226672,1764840641361,-202.19795805,0.000169,2]
[396226673,1764840641371,-2579.60999429,0.00016918,2]
[396226674,1764840641381,-1242.99734281,0.0001693,2]
[396226675,1764840641606,-2579.60999429,0.00016941,2]
[396226676,1764840641616,-218.12979786,0.00016941,2]
[396226677,1764840641626,-2346.0,0.00016957,2]
[396226678,1764840641635,-2346.0,0.00016967,2]
[396226679,1764840641645,-518.5,0.00016986,2]
[396226680,1764840641654,-500.0,0.0001699,2]
[396226681,1764840641664,-150.0,0.0001699,2]
[396226682,1764840641673,-203.85379449,0.0001699,2]
[396226683,1764840641682,-150.0,0.0001699,2]
[396226684,1764840641693,-150.0,0.0001699,2]
[396226685,1764840641702,-500.0,0.0001699,2]
[396226686,1764840641711,-150.0,0.0001699,2]
[396226687,1764840641722,-150.0,0.0001699,2]
[396226688,1764840641732,-150.0,0.0001699,2]
[396226689,1764840641744,-150.0,0.0001699,2]
[396226690,1764840641755,-500.0,0.0001699,2]
[396226691,1764840641764,-500.0,0.0001699,2]
[396226692,1764840641773,-500.0,0.0001699,2]
[396226693,1764840641782,-210.30255927,0.0001699,2]
[396226694,1764840641792,-150.0,0.0001699,2]
[396226695,1764840641801,-500.0,0.0001699,2]
[396226696,1764840641811,-150.0,0.0001699,2]
[396226697,1764840641820,-150.0,0.0001699,2]
[396226698,1764840641829,-500.0,0.0001699,2]
[396226699,1764840641838,-150.0,0.0001699,2]
[396226700,1764840641847,-199.73901061,0.0001699,2]
[396226701,1764840641857,-199.73901061,0.0001699,2]
[396226702,1764840641867,-150.0,0.0001699,2]
[396226703,1764840641876,-500.0,0.0001699,2]
[396226704,1764840641886,-300.0,0.00016999,2]
[396226705,1764840641895,-578.77667957,0.00016999,2]
[396226706,1764840641904,-1251.0,0.00017,2]
[396226707,1764840641914,-1251.0,0.00017,2]
[396226708,1764840641923,-1251.0,0.00017,2]
[396226709,1764840641931,-1247.0,0.00017,2]
[396226710,1764840641940,-2255724.00597275,0.00017,2]
[396226711,1764840641957,-978.07801212,0.00017,2]
[396226712,1764840641968,-4574.1801,0.00017,2]
[396226715,1764840642987,-17.35760016,0.0001699,2]
[396226718,1764840646006,-11177.99915104,0.00016567,2]
[396226719,1764840646129,-443.006076,0.00016567,2]
[396226751,1764841224863,157.77,7.86e-05,2]
[396226752,1764841225056,157.77,0.0001048,2]
[396226781,1764841696367,-157.77,0.00013099,2]
[396226782,1764841696389,-365.8974645,0.00013754,2]
[396226783,1764841696410,-196.21411934,0.00014409,2]
[396226784,1764841696430,-300.0,0.00014409,2]
[396226785,1764841696451,-250.0,0.00014409,2]
[396226792,1764841832165,-166.66,0.00015118,2]
[396226793,1764841832176,-156.79860579,0.00015288,2]
[396226795,1764841832186,-155.57891233,0.00015288,2]
[396226796,1764841832195,-153.94576401,0.00015288,2]
[396226797,1764841832205,-159.05390551,0.00015288,2]
[396226798,1764841832215,-160.05,0.00015421,2]
[396226799,1764841832225,-46.91281236,0.00015421,2]
[396226803,1764841840198,-312.79718764,0.00015421,2]
[396226804,1764841840209,-166.66,0.00015436,2]
[396226805,1764841840219,-157.77,0.00015719,2]
[396226806,1764841840230,-999.0,0.00015747,3]
[396226807,1764841840239,-166.66,0.00015755,2]
[396226808,1764841840248,-1000.0,0.00015772,2]
[396226809,1764841840258,-500.0,0.00015873,2]
[396226810,1764841840269,-500.0,0.00015873,2]
[396226811,1764841840278,-150.34,0.00015988,2]
[396226812,1764841840289,-1200.0,0.00015999,2]
[396226813,1764841840299,-1644.23,0.00016,2]
[396226814,1764841840309,-166.66,0.00016073,2]
[396226815,1764841840320,-166.66,0.00016391,2]
[396226816,1764841840330,-7532.56,0.00016438,2]
[396226817,1764841840340,-2651.0,0.00016443,2]
[396226818,1764841840349,-1205.8055,0.00016466,2]
[396226819,1764841840359,-162052.6353,0.00016466,2]
[396226821,1764841840368,-4911.29924807,0.0001651,2]
[396226822,1764841840378,-2862.84443816,0.0001651,2]
[396226823,1764841840387,-307.446999,0.00016556,2]
[396226824,1764841840396,-151.0,0.00016556,2]
[396226825,1764841840405,-151.0,0.00016556,2]
[396226827,1764841840414,-151.0,0.00016556,2]
[396226828,1764841840423,-151.0,0.00016556,2]
[396226829,1764841840433,-151.0,0.00016556,2]
[396226830,1764841840442,-151.0,0.00016556,2]
[396226831,1764841840452,-151.0,0.00016556,2]
[396226832,1764841840462,-1000.0,0.00016565,2]
[396226833,1764841840471,-1111.865,0.00016566,2]
[396226834,1764841840480,-500.0,0.00016566,2]
[396226835,1764841840489,-500.0,0.00016566,2]
[396226836,1764841840499,-500.0,0.00016566,2]
[396226837,1764841840508,-507.69829592,0.00016566,2]
[396226838,1764841840517,-509.18007663,0.00016566,2]
[396226839,1764841840527,-500.0,0.00016566,2]
[396226840,1764841840536,-510.22691486,0.00016566,2]
[396226841,1764841840546,-6521.0,0.000166,2]
[396226843,1764841840555,-4911.29924807,0.00016664,2]
[396226844,1764841840564,-2862.8444381,0.00016664,2]
[396226845,1764841840574,-166.66,0.0001671,2]
[396226846,1764841840584,-2651.0,0.00016713,2]
[396226847,1764841840595,-2651.0,0.00016726,2]
[396226848,1764841840605,-202.59163877,0.00016797,2]
[396226849,1764841840615,-507.17450848,0.00016797,2]
[396226850,1764841840624,-500.0,0.00016797,2]
[396226851,1764841840634,-506.24410093,0.00016797,2]
[396226852,1764841840643,-500.0,0.00016797,2]
[396226853,1764841840652,-508.04937592,0.00016797,2]
[396226854,1764841840662,-410.37691776,0.00016797,2]
[396226855,1764841840671,-4911.29924807,0.00016819,2]
[396226856,1764841840680,-2862.8444381,0.00016819,2]
[396226857,1764841840689,-270.68674374,0.00016886,2]
[396226858,1764841840699,-181.41208312,0.00016897,2]
[396226859,1764841840708,-1402.80529206,0.00016899,2]
[396226860,1764841840717,-2651.0,0.00016899,2]
[396226861,1764841840727,-10000.0,0.000169,2]
[396226862,1764841840737,-210.94522326,0.000169,2]
[396226863,1764841840747,-218.12979786,0.000169,2]
[396226864,1764841840756,-2619.84735268,0.000169,2]
[396226865,1764841840765,-5524.0,0.000169,3]
[396226866,1764841840774,-616.4929053,0.000169,2]
[396226867,1764841840785,-1458.41,0.00016922,2]
[396226868,1764841840795,-436.48,0.00016922,2]
[396226869,1764841840805,-150.99,0.00016922,2]
[396226870,1764841840815,-9999.99,0.00016922,2]
[396226871,1764841840827,-1629.69,0.00016922,2]
[396226872,1764841840843,-1638.44,0.00016922,2]
[396226873,1764841840852,-999.99,0.00016922,2]
[396226874,1764841840862,-9999.99,0.00016922,2]
[396226875,1764841840872,-19999.99,0.00016922,2]
[396226876,1764841840882,-621.64,0.00016944,2]
[396226877,1764841840891,-1000.0,0.0001697,2]
[396226878,1764841840902,-1000.0,0.0001697,2]
[396226879,1764841840917,-598.94895177,0.00016973,2]
[396226880,1764841840927,-500.0,0.00016973,2]
[396226881,1764841840936,-4911.29924807,0.00016973,2]
[396226882,1764841840946,-2862.8444381,0.00016973,2]
[396226883,1764841840955,-518.5,0.00016986,2]
[396226884,1764841840964,-1065.0,0.00016986,2]
[396226885,1764841840974,-500.0,0.0001699,2]
[396226886,1764841840983,-150.0,0.0001699,2]
[396226887,1764841840992,-150.0,0.0001699,2]
[396226888,1764841841005,-282.96061831,0.0001699,2]
[396226889,1764841841014,-150.0,0.0001699,2]
[396226890,1764841841023,-150.0,0.0001699,2]
[396226891,1764841841038,-150.86420125,0.0001699,2]
[396226892,1764841841047,-150.0,0.0001699,2]
[396226893,1764841841056,-500.0,0.0001699,2]
[396226894,1764841841066,-500.0,0.0001699,2]
[396226895,1764841841075,-150.0,0.0001699,2]
[396226896,1764841841084,-152.33281575,0.0001699,2]
[396226897,1764841841093,-150.0,0.0001699,2]
[396226898,1764841841103,-500.0,0.0001699,2]
[396226899,1764841841112,-150.0,0.0001699,2]
[396226900,1764841841121,-500.0,0.0001699,2]
[396226901,1764841841130,-500.0,0.0001699,2]
[396226902,1764841841140,-150.0,0.0001699,2]
[396226903,1764841841149,-500.0,0.0001699,2]
[396226904,1764841841158,-500.0,0.0001699,2]
[396226905,1764841841167,-859.19,0.0001699,2]
[396226906,1764841841179,-150.0,0.0001699,2]
[396226907,1764841841188,-500.0,0.0001699,2]
[396226908,1764841841198,-150.0,0.0001699,2]
[396226909,1764841841208,-199.73901061,0.0001699,2]
[396226910,1764841841217,-199.73901061,0.0001699,2]
[396226911,1764841841226,-202.19752299,0.0001699,2]
[396226912,1764841841235,-150.0,0.0001699,2]
[396226913,1764841841244,-500.0,0.0001699,2]
[396226914,1764841841254,-150.0,0.0001699,2]
[396226915,1764841841263,-207.9515902,0.0001699,2]
[396226916,1764841841272,-500.0,0.0001699,2]
[396226917,1764841841281,-150.0,0.0001699,2]
[396226918,1764841841290,-1434.99960041,0.00016996,2]
[396226919,1764841841300,-1434.99960041,0.00016996,2]
[396226920,1764841841309,-1434.99960041,0.00016996,2]
[396226921,1764841841318,-1434.99960041,0.00016996,2]
[396226922,1764841841518,-1434.99960041,0.00016996,2]
[396226923,1764841841528,-1434.99960041,0.00016996,2]
[396226924,1764841841538,-1434.99960041,0.00016996,2]
[396226925,1764841841550,-1434.99960041,0.00016996,2]
[396226926,1764841841560,-1434.99960041,0.00016996,2]
[396226927,1764841841569,-1434.99960041,0.00016996,2]
[396226928,1764841841578,-1434.99960041,0.00016996,2]
[396226929,1764841841587,-1434.99960041,0.00016996,2]
[396226930,1764841841596,-1434.99960041,0.00016996,2]
[396226931,1764841841606,-1434.99960041,0.00016996,2]
[396226932,1764841841615,-1434.99960041,0.00016996,2]
[396226933,1764841841624,-1434.99960041,0.00016996,2]
[396226934,1764841841633,-1434.99960041,0.00016996,2]
[396226935,1764841841643,-1434.99960041,0.00016996,2]
[396226936,1764841841652,-1434.99960041,0.00016996,2]
[396226937,1764841841661,-1434.99960041,0.00016996,2]
[396226938,1764841841671,-1434.99960041,0.00016996,2]
[396226939,1764841841680,-1434.99960041,0.00016996,2]
[396226940,1764841841689,-1434.99960041,0.00016996,2]
[396226941,1764841841698,-1434.99960041,0.00016996,2]
[396226942,1764841841708,-1434.99960041,0.00016996,2]
[396226943,1764841841717,-1434.99960041,0.00016996,2]
[396226944,1764841841727,-1434.99960041,0.00016996,2]
[396226945,1764841841735,-1434.99960041,0.00016996,2]
[396226946,1764841841744,-1434.99960041,0.00016996,2]
[396226947,1764841841754,-1434.99960041,0.00016996,2]
[396226948,1764841841766,-1434.99960041,0.00016996,2]
[396226949,1764841841777,-1434.99960041,0.00016996,2]
[396226950,1764841841787,-1434.99960041,0.00016996,2]
[396226951,1764841841796,-1434.99960041,0.00016996,2]
[396226952,1764841841806,-1434.99960041,0.00016996,2]
[396226953,1764841841816,-1434.99960041,0.00016996,2]
[396226954,1764841841826,-1434.99960041,0.00016996,2]
[396226955,1764841841839,-1434.99960041,0.00016996,2]
[396226956,1764841841848,-1434.99960041,0.00016996,2]
[396226957,1764841841858,-1434.99960041,0.00016996,2]
[396226958,1764841841868,-1434.99960041,0.00016996,2]
[396226959,1764841841880,-1434.99960041,0.00016996,2]
[396226960,1764841841889,-1434.99960041,0.00016996,2]
[396226961,1764841841900,-1434.99960041,0.00016996,2]
[396226962,1764841841910,-1434.99960041,0.00016996,2]
[396226963,1764841841919,-1434.99960041,0.00016996,2]
[396226964,1764841841928,-1434.99960041,0.00016996,2]
[396226965,1764841841937,-1434.99960041,0.00016996,2]
[396226966,1764841841946,-1434.99960041,0.00016996,2]
[396226967,1764841841955,-1434.99960041,0.00016996,2]
[396226968,1764841841965,-1434.99960041,0.00016996,2]
[396226969,1764841841974,-1434.99960041,0.00016996,2]
[396226970,1764841841983,-1434.99960041,0.00016996,2]
[396226971,1764841841992,-1434.99960041,0.00016996,2]
[396226972,1764841842002,-1434.99960041,0.00016996,2]
[396226973,1764841842011,-1434.99960041,0.00016996,2]
[396226974,1764841842021,-1434.99960041,0.00016996,2]
[396226975,1764841842030,-1434.99960041,0.00016996,2]
[396226976,1764841842040,-1434.99960041,0.00016996,2]
[396226977,1764841842050,-1434.99960041,0.00016996,2]
[396226978,1764841842060,-1434.99960041,0.00016996,2]
[396226979,1764841842069,-1387.1662804,0.00016996,2]
[396226980,1764841842080,-1387.1662804,0.00016996,2]
[396226981,1764841842090,-1387.1662804,0.00016996,2]
[396226982,1764841842100,-1387.1662804,0.00016996,2]
[396226983,1764841842109,-1387.1662804,0.00016996,2]
[396226984,1764841842119,-1387.1662804,0.00016996,2]
[396226985,1764841842130,-1387.1662804,0.00016996,2]
[396226986,1764841842141,-1387.1662804,0.00016996,2]
[396226987,1764841842150,-1387.1662804,0.00016996,2]
[396226988,1764841842159,-1387.1662804,0.00016996,2]
[396226989,1764841842169,-1387.1662804,0.00016996,2]
[396226990,1764841842178,-1387.1662804,0.00016996,2]
[396226991,1764841842187,-1387.1662804,0.00016996,2]